bitfinex/quotes_BTCUSD_20220205
["timestamp","ask_amount","ask_price","bid_price","bid_amount"]
[1644058053894,0.07476738,41557.0,41548.0,0.20637299]
[1644058054143,0.18493238,41557.0,41548.0,0.20637299]
[1644058054342,0.17476738,41557.0,41544.0,0.3]
[1644058054543,0.12476738,41557.0,41544.0,0.50637299]
[1644058054738,0.34413851,41557.0,41545.0,0.23374163]
[1644058055138,0.34413851,41557.0,41545.0,0.23368017]
[1644058055338,0.12033754,41556.0,41545.0,0.23368017]
[1644058055538,0.22831817,41550.0,41545.0,0.23368017]
[1644058055739,0.22831817,41550.0,41544.0,0.32158538]
[1644058055939,0.22831817,41550.0,41544.0,0.02158538]
[1644058056538,0.22831817,41550.0,41545.0,0.04999999]
[1644058056738,0.00069827,41549.0,41544.0,0.02158538]
[1644058056938,0.00069827,41549.0,41545.0,0.04999999]
[1644058057341,0.00069827,41549.0,41548.0,0.04999999]
[1644058057541,0.12034287,41553.0,41548.0,0.04999999]
[1644058057783,0.060168,41554.0,41548.0,0.04999999]
[1644058058084,0.00026546,41549.0,41548.0,0.15791299]
[1644058058482,0.00026546,41549.0,41548.0,0.04999999]
[1644058058686,0.25557039,41556.0,41545.0,0.26653899]
[1644058058886,0.25557039,41556.0,41547.0,0.04999999]
[1644058059084,0.00026546,41551.0,41547.0,0.04999999]
[1644058059488,0.00026546,41551.0,41547.0,0.11016299]
[1644058059985,0.06016379,41554.0,41547.0,0.11016299]
[1644058060185,0.00074563,41551.0,41547.0,0.04999999]
[1644058061289,0.25557039,41556.0,41547.0,0.04999999]
[1644058061538,0.06092974,41551.0,41547.0,0.04999999]
[1644058062133,0.06092974,41551.0,41545.0,0.22831776]
[1644058062338,0.06016258,41551.0,41545.0,0.22831776]
[1644058062734,0.06092974,41551.0,41545.0,0.22831776]
[1644058063433,0.06092974,41551.0,41545.0,0.20637299]
[1644058063635,0.06016258,41551.0,41545.0,0.20637299]
[1644058063835,0.00076717,41550.0,41545.0,0.20637299]
[1644058064134,0.00076717,41550.0,41546.0,0.107929]
[1644058064335,0.00076717,41550.0,41546.0,0.31430199]
[1644058064734,0.06016258,41551.0,41546.0,0.31430199]
[1644058064735,0.25438018,41549.0,41546.0,0.20637299]
[1644058064938,0.06016258,41551.0,41546.0,0.20637299]
[1644058065136,0.00074279,41550.0,41546.0,0.20637299]
[1644058065589,0.00074279,41550.0,41547.0,0.107926]
[1644058065990,0.06016258,41551.0,41547.0,0.107926]
[1644058066192,0.06090536,41551.0,41546.0,0.20637299]
[1644058066589,0.06090536,41551.0,41547.0,0.107926]
[1644058067191,0.06016258,41551.0,41546.0,1.88581789]
[1644058067391,0.06090535,41551.0,41546.0,1.88581789]
[1644058067990,0.06161535,41551.0,41547.0,0.15721599]
[1644058068392,0.06087258,41551.0,41547.0,0.15721599]
[1644058068690,0.061617,41551.0,41547.0,0.15721599]
[1644058069337,0.061617,41551.0,41549.0,0.24400621]
[1644058069538,0.06087258,41551.0,41549.0,0.21660131]
[1644058069937,0.061617,41551.0,41549.0,0.21660131]
[1644058070738,0.07476738,41557.0,41550.0,0.15720599]
[1644058070943,0.07547738,41557.0,41552.0,0.04928999]
[1644058071141,0.07476738,41557.0,41553.0,0.107902]
[1644058071540,0.07547738,41557.0,41555.0,0.04928999]
[1644058071740,0.07547738,41557.0,41556.0,0.36814283]
[1644058071939,0.07547738,41557.0,41556.0,0.42829083]
[1644058072141,0.07547738,41557.0,41556.0,0.69727784]
[1644058072339,0.00071,41557.0,41556.0,0.69727784]
[1644058072541,0.00071,41557.0,41556.0,0.90365083]
[1644058072787,0.00071,41557.0,41556.0,0.69727784]
[1644058072984,0.00071,41557.0,41556.0,0.99336701]
[1644058075785,0.00071,41557.0,41556.0,0.69727784]
[1644058076187,0.00071,41557.0,41556.0,0.42829083]
[1644058076547,0.00071,41557.0,41556.0,0.107891]
[1644058076840,0.00071,41557.0,41555.0,0.25566298]
[1644058077040,0.00071,41557.0,41555.0,0.20637299]
[1644058077242,0.27209468,41557.0,41551.0,0.20637299]
[1644058077443,0.00071,41553.0,41550.0,0.20637299]
[1644058077641,0.00071,41553.0,41549.0,0.20637299]
[1644058077844,0.00071,41550.0,41549.0,0.20637299]
[1644058078042,0.06087938,41550.0,41548.0,0.20637299]
[1644058080141,0.19959791,41549.0,41548.0,0.20637299]
[1644058080393,0.06087938,41550.0,41548.0,0.20637299]
[1644058081996,0.00071,41550.0,41548.0,0.20637299]
[1644058082394,0.00033742,41550.0,41549.0,0.107911]
[1644058082595,0.00033742,41550.0,41549.0,0.20643071]
[1644058082895,0.00033742,41550.0,41548.0,0.20643071]
[1644058083099,0.00033742,41550.0,41549.0,0.107919]
[1644058083495,0.00033742,41550.0,41549.0,0.31435244]
[1644058085838,0.00070351,41552.0,41549.0,0.36401501]
[1644058086039,0.00070351,41552.0,41549.0,0.107918]
[1644058086040,0.00033742,41550.0,41549.0,0.107918]
[1644058086240,0.00104093,41552.0,41549.0,0.107918]
[1644058086439,0.00070351,41552.0,41551.0,0.06016]
[1644058086639,0.26826771,41554.0,41551.0,0.20643139]
[1644058086839,0.00070245,41552.0,41550.0,0.20643139]
[1644058087338,0.00033742,41551.0,41550.0,0.20643139]
[1644058088089,0.00033742,41551.0,41549.0,0.20643139]
[1644058090391,0.00033742,41551.0,41550.0,0.20643139]
[1644058091845,0.00033742,41551.0,41550.0,0.25609396]
[1644058092441,0.00033742,41551.0,41550.0,0.20643139]
[1644058093140,0.00033742,41551.0,41550.0,0.20645512]
[1644058094043,0.00033742,41551.0,41550.0,0.36403069]
[1644058094240,0.00033742,41551.0,41550.0,3.12484384]
[1644058095290,0.00033742,41551.0,41550.0,0.36403069]
[1644058096294,0.00033742,41551.0,41550.0,0.15757557]
[1644058096892,0.00070258,41553.0,41550.0,0.04966257]
[1644058097190,0.31004099,41556.0,41551.0,0.2064584]
[1644058097590,0.00070257,41554.0,41551.0,0.2064584]
[1644058098190,0.00103999,41554.0,41551.0,0.2064584]
[1644058098591,0.00033742,41554.0,41551.0,0.2064584]
[1644058099044,0.00033742,41554.0,41551.0,0.2666184]
[1644058099437,0.19885598,41556.0,41551.0,0.2064584]
[1644058099837,0.25901739,41556.0,41551.0,0.2064584]
[1644058100038,0.00070256,41555.0,41552.0,0.2064584]
[1644058100838,0.06016141,41556.0,41552.0,0.2064584]
[1644058101538,0.27935803,41556.0,41552.0,0.2064584]
[1644058102340,0.06016141,41556.0,41552.0,0.2064584]
[1644058102792,0.3380107,41557.0,41552.0,0.2064584]
[1644058102995,0.06015821,41557.0,41552.0,0.2064584]
[1644058103197,0.20715603,41561.0,41556.0,0.04999999]
[1644058103198,0.001,41561.0,41556.0,0.04999999]
[1644058103396,0.001,41561.0,41557.0,0.2275359]
[1644058103795,0.001,41561.0,41557.0,0.45434793]
[1644058104294,0.07107124,41561.0,41557.0,0.45434793]
[1644058104496,0.07107124,41561.0,41557.0,0.51449593]
[1644058104895,0.07185612,41561.0,41557.0,0.51449593]
[1644058105695,0.07107124,41561.0,41557.0,0.51449593]
[1644058105895,0.07185612,41561.0,41557.0,0.51449593]
[1644058106939,0.07185612,41561.0,41560.0,0.04999999]
[1644058106940,0.001,41561.0,41560.0,0.04999999]
[1644058107140,0.00178488,41561.0,41560.0,0.41914879]
[1644058108140,0.001,41561.0,41560.0,0.04999999]
[1644058108941,0.001,41561.0,41557.0,0.66080633]
[1644058109343,0.001,41561.0,41557.0,0.45434793]
[1644058109539,0.06193776,41561.0,41557.0,0.45434793]
[1644058109738,0.06193776,41561.0,41557.0,0.22681203]
[1644058110588,0.06115288,41561.0,41557.0,0.22681203]
[1644058110788,0.06193776,41561.0,41557.0,0.22681203]
[1644058111388,0.06193776,41561.0,41556.0,0.46311501]
[1644058111389,0.06193776,41561.0,41556.0,0.2064584]
[1644058111590,0.06193776,41561.0,41555.0,0.2064584]
[1644058111788,0.06115288,41561.0,41555.0,0.2064584]
[1644058111993,0.06193777,41561.0,41555.0,0.2064584]
[1644058112390,0.06193777,41561.0,41555.0,0.40783313]
[1644058112988,0.12131188,41561.0,41555.0,0.40783313]
[1644058113188,0.00076551,41560.0,41555.0,0.40783313]
[1644058113589,0.00076551,41560.0,41556.0,0.04999999]
[1644058114043,0.12131188,41561.0,41556.0,0.04999999]
[1644058114436,0.00076551,41560.0,41556.0,0.04999999]
[1644058114643,0.00076551,41560.0,41556.0,0.11015299]
[1644058115137,0.00076551,41560.0,41556.0,2.47237189]
[1644058115336,0.001,41561.0,41556.0,2.67883029]
[1644058115536,0.00076551,41560.0,41556.0,2.41022664]
[1644058116538,0.001,41561.0,41556.0,2.41022664]
[1644058116939,0.00073778,41560.0,41557.0,0.107894]
[1644058117146,0.00073778,41560.0,41556.0,2.41022664]
[1644058117342,0.00073778,41560.0,41556.0,0.2666114]
[1644058117642,0.06115443,41561.0,41557.0,0.04999999]
[1644058117889,0.00073778,41560.0,41557.0,0.04999999]
[1644058118089,0.00073778,41560.0,41556.0,0.2064584]
[1644058118989,0.06115443,41561.0,41558.0,2.0411218]
[1644058119189,0.00073778,41560.0,41558.0,2.0411218]
[1644058120192,0.001,41561.0,41557.0,0.2064584]
[1644058120495,0.061894,41561.0,41557.0,0.2064584]
[1644058121394,0.06115434,41561.0,41557.0,0.2064584]
[1644058121645,0.06115434,41561.0,41555.0,0.46798813]
[1644058121646,0.061894,41561.0,41555.0,0.46798813]
[1644058122450,0.06115434,41561.0,41555.0,0.46798813]
[1644058122843,0.06115434,41561.0,41557.0,2.0081196]
[1644058122844,0.00073967,41560.0,41557.0,2.0081196]
[1644058123244,0.00065815,41560.0,41557.0,2.0081196]
[1644058123445,0.00065815,41560.0,41558.0,0.27002602]
[1644058123844,0.06115434,41561.0,41558.0,0.27002602]
[1644058123845,0.001,41561.0,41558.0,0.26582687]
[1644058124144,0.001,41561.0,41557.0,2.274731]
[1644058124745,0.001,41561.0,41557.0,0.2666114]
[1644058124948,0.06115425,41561.0,41557.0,0.060153]
[1644058125792,0.06115425,41561.0,41556.0,0.2064584]
[1644058126091,0.001,41561.0,41556.0,0.2064584]
[1644058126292,0.001,41561.0,41557.0,2.72376514]
[1644058126894,0.001,41561.0,41556.0,0.2064584]
[1644058127496,0.001,41561.0,41557.0,0.060153]
[1644058127693,0.00178489,41561.0,41557.0,0.060153]
[1644058127895,0.00178489,41561.0,41556.0,0.2064584]
[1644058128296,0.00178489,41561.0,41555.0,0.40783313]
[1644058128795,0.0007849,41560.0,41555.0,0.40783313]
[1644058129043,0.0007849,41560.0,41556.0,0.26767315]
[1644058129240,0.0007849,41560.0,41556.0,0.47413155]
[1644058129840,0.05564498,41562.0,41556.0,0.47413155]
[1644058130045,0.05564498,41562.0,41556.0,0.2064584]
[1644058130046,0.0007849,41560.0,41556.0,0.2064584]
[1644058130241,0.06093911,41560.0,41556.0,0.47489135]
[1644058130445,0.0007849,41560.0,41556.0,0.47489135]
[1644058131044,0.001,41563.0,41556.0,0.47489135]
[1644058131345,0.001,41563.0,41557.0,0.542777]
[1644058131542,0.001,41563.0,41558.0,0.2064584]
[1644058132349,0.001,41563.0,41562.0,0.04999999]
[1644058132551,0.00176216,41563.0,41562.0,0.04999999]
[1644058132796,0.00176216,41563.0,41562.0,0.15787199]
[1644058133096,0.00176216,41563.0,41562.0,0.36433039]
[1644058133296,0.00176216,41563.0,41562.0,0.8331234]
[1644058133496,0.001,41563.0,41562.0,0.746937]
[1644058133697,0.001,41563.0,41562.0,0.9533954]
[1644058134697,0.001,41563.0,41562.0,1.25407785]
[1644058134896,0.001,41563.0,41562.0,1.30217785]
[1644058137643,0.06188398,41565.0,41562.0,1.30217785]
[1644058137839,0.06188398,41565.0,41563.0,0.107862]
[1644058138239,0.061139,41565.0,41563.0,0.107862]
[1644058140145,0.001,41565.0,41563.0,0.167997]
[1644058140397,0.001,41565.0,41564.0,0.42028751]
[1644058140795,0.001,41565.0,41564.0,0.155958]
[1644058141796,0.001,41565.0,41564.0,0.42706694]
[1644058141999,0.001,41565.0,41564.0,0.63352534]
[1644058142201,0.001,41565.0,41564.0,0.42706694]
[1644058143197,0.001,41565.0,41564.0,0.42573398]
[1644058144246,0.00062067,41565.0,41564.0,0.42573398]
[1644058145048,0.00062067,41565.0,41564.0,0.15462504]
[1644058146047,0.00062067,41565.0,41564.0,0.41933822]
[1644058146847,0.00062067,41565.0,41564.0,0.107858]
[1644058148098,0.00062067,41565.0,41559.0,0.37158849]
[1644058148294,0.060155,41564.0,41559.0,0.1137]
[1644058148492,0.32842443,41563.0,41557.0,0.04999999]
[1644058148892,0.25248003,41562.0,41557.0,0.25544231]
[1644058149093,0.27242327,41561.0,41558.0,0.107875]
[1644058149694,0.27242327,41561.0,41559.0,0.2223714]
[1644058150095,0.27242327,41561.0,41560.0,1.98695641]
[1644058150492,0.27242327,41561.0,41559.0,0.2223714]
[1644058150698,0.53690833,41561.0,41559.0,0.2223714]
[1644058151745,0.27453271,41560.0,41559.0,0.2223714]
[1644058152644,0.12101343,41562.0,41559.0,0.2223714]
[1644058152845,0.12031141,41562.0,41559.0,0.2223714]
[1644058153044,0.12101343,41562.0,41559.0,0.2223714]
[1644058153646,0.06085802,41562.0,41559.0,0.2223714]
[1644058153847,0.33180706,41562.0,41559.0,0.2223714]
[1644058154046,0.060156,41562.0,41559.0,0.2223714]
[1644058154447,0.00070201,41563.0,41560.0,0.107875]
[1644058154949,0.00070201,41563.0,41561.0,0.060142]
[1644058155147,0.06076167,41565.0,41562.0,0.107867]
[1644058155392,0.06076167,41565.0,41561.0,0.060142]
[1644058155592,0.000702,41564.0,41561.0,0.060142]
[1644058156192,0.000702,41564.0,41562.0,0.107865]
[1644058156393,0.00062067,41565.0,41563.0,0.38101597]
[1644058156596,0.00062067,41565.0,41564.0,0.107859]
[1644058156895,0.00062067,41565.0,41564.0,0.50353334]
[1644058156896,0.00132266,41565.0,41564.0,0.50353334]
[1644058157094,0.00132266,41565.0,41564.0,0.76142183]
[1644058157694,0.00062067,41565.0,41564.0,0.76142183]
[1644058158096,0.00062067,41565.0,41564.0,0.50353334]
[1644058160044,0.00062067,41565.0,41564.0,0.60353334]
[1644058160245,0.003,41567.0,41564.0,0.60353334]
[1644058160246,0.00070197,41567.0,41566.0,0.4]
[1644058160544,0.00070197,41567.0,41566.0,1.46574022]
[1644058160744,0.00580746,41573.0,41567.0,0.55]
[1644058160951,0.00580746,41573.0,41569.0,0.04999999]
[1644058161146,0.003,41573.0,41569.0,0.43962885]
[1644058162347,0.003,41573.0,41569.0,0.69403313]
[1644058163795,0.00430318,41572.0,41569.0,0.69403313]
[1644058164194,0.00053211,41570.0,41569.0,0.69403313]
[1644058164594,0.00053211,41570.0,41569.0,0.48772885]
[1644058165995,0.00053211,41570.0,41569.0,0.20593799]
[1644058166201,0.00053211,41570.0,41569.0,0.155938]
[1644058171694,0.00053211,41570.0,41569.0,0.42437379]
[1644058172495,0.00078641,41572.0,41570.0,0.22752061]
[1644058173096,0.060134,41571.0,41570.0,0.22752061]
[1644058173296,0.060134,41571.0,41570.0,0.33535161]
[1644058174055,0.00073732,41573.0,41570.0,0.3853516]
[1644058174252,0.00073732,41573.0,41571.0,0.167958]
[1644058174451,0.060128,41575.0,41571.0,0.167958]
[1644058174650,0.060128,41575.0,41570.0,0.2775206]
[1644058174651,0.060128,41575.0,41570.0,0.04999999]
[1644058174851,0.00073732,41574.0,41569.0,0.0481]
[1644058175652,0.32853843,41573.0,41567.0,0.27042425]
[1644058175853,0.32853843,41573.0,41566.0,0.46411314]
[1644058176054,0.32853843,41573.0,41565.0,0.20630428]
[1644058176856,0.2413566,41566.0,41563.0,0.20630428]
[1644058177056,0.2413566,41566.0,41561.0,0.22617451]
[1644058177255,0.2413566,41566.0,41561.0,0.01987023]
[1644058177454,0.2913566,41566.0,41561.0,0.01987023]
[1644058177894,0.07974335,41562.0,41561.0,0.00074025]
[1644058178294,0.060154,41563.0,41560.0,0.26404869]
[1644058178693,0.060154,41563.0,41561.0,0.10859721]
[1644058179494,0.06954409,41562.0,41560.0,0.26474708]
[1644058179693,0.06954409,41562.0,41561.0,0.10787]
[1644058180094,0.06954409,41562.0,41560.0,0.26474708]
[1644058180493,0.06954409,41562.0,41560.0,0.26404869]
[1644058180697,0.06954409,41562.0,41561.0,0.10787]
[1644058180896,0.06954409,41562.0,41559.0,0.2070025]
[1644058181551,0.33161,41561.0,41559.0,0.00069822]
[1644058181749,0.33161,41561.0,41557.0,0.02198558]
[1644058181750,0.38161,41561.0,41557.0,0.02198558]
[1644058181944,0.33161,41559.0,41558.0,0.00069823]
[1644058183044,0.33161,41559.0,41554.0,0.20819145]
[1644058183247,0.060167,41559.0,41556.0,0.00074007]
[1644058183445,0.33161,41558.0,41556.0,0.00074007]
[1644058184249,0.45194249,41558.0,41554.0,0.20819145]
[1644058184445,0.45194084,41557.0,41555.0,0.0007401]
[1644058185501,0.45194084,41557.0,41554.0,0.20819145]
[1644058185698,0.45194084,41557.0,41554.0,0.20893156]
[1644058186698,0.45194084,41557.0,41554.0,0.20819145]
[1644058187100,0.45194084,41557.0,41553.0,0.0006983]
[1644058187300,0.180509,41556.0,41553.0,0.0006983]
[1644058187600,0.12033954,41555.0,41553.0,0.0006983]
[1644058187799,0.12033954,41555.0,41550.0,0.02103071]
[1644058188000,0.24067284,41554.0,41552.0,0.00069831]
[1644058188201,0.20952276,41553.0,41552.0,0.00069831]
[1644058188600,0.4789608,41553.0,41552.0,0.00069831]
[1644058188800,0.8105708,41553.0,41552.0,0.00069831]
[1644058189055,0.8105708,41553.0,41550.0,0.23080482]
[1644058189250,0.06017334,41551.0,41550.0,0.00070104]
[1644058189453,1.35592805,41551.0,41550.0,0.00070104]
[1644058189649,1.68753805,41551.0,41550.0,0.00070104]
[1644058190249,1.68753805,41551.0,41546.0,0.00020105]
[1644058190250,1.86806005,41551.0,41546.0,0.00020105]
[1644058190452,1.86806005,41551.0,41548.0,0.00070106]
[1644058190453,0.06674781,41549.0,41548.0,0.00070106]
[1644058190652,0.870381,41548.0,41538.0,0.05]
[1644058190853,0.870381,41548.0,41528.0,0.03]
[1644058190854,0.22109889,41529.0,41528.0,0.03]
[1644058191053,0.07630358,41529.0,41528.0,0.03]
[1644058191355,0.07630358,41529.0,41526.0,0.05]
[1644058191356,0.5,41528.0,41526.0,0.05]
[1644058191551,0.33161,41527.0,41526.0,0.05]
[1644058191752,0.45,41526.0,41521.0,0.05]
[1644058191957,0.168535,41528.0,41521.0,0.05]
[1644058192151,0.2702728,41525.0,41521.0,0.05]
[1644058192553,0.33161,41524.0,41521.0,0.05]
[1644058192796,0.38161,41524.0,41521.0,0.05]
[1644058193193,0.30218808,41523.0,41521.0,0.05]
[1644058193394,0.33161,41522.0,41521.0,0.05]
[1644058193596,0.72228405,41522.0,41521.0,0.05]
[1644058195997,0.060219,41523.0,41521.0,0.05]
[1644058196199,0.060212,41529.0,41521.0,0.05]
[1644058196200,0.0187107,41534.0,41522.0,0.40803]
[1644058196398,0.0187107,41534.0,41522.0,0.04999999]
[1644058196649,0.0187107,41534.0,41521.0,0.02]
[1644058196843,0.25945336,41526.0,41521.0,0.22081867]
[1644058197048,0.08739208,41525.0,41521.0,0.02]
[1644058197845,0.08739208,41525.0,41522.0,0.04999999]
[1644058199651,0.08739208,41525.0,41521.0,0.02074399]
[1644058200051,0.08739208,41525.0,41521.0,0.02]
[1644058200293,0.08739208,41525.0,41521.0,0.02074399]
[1644058201096,0.391822,41524.0,41521.0,0.02074399]
[1644058201296,0.060212,41524.0,41521.0,0.02]
[1644058201495,0.060212,41524.0,41521.0,0.02074399]
[1644058201696,0.08739208,41525.0,41521.0,0.02074399]
[1644058202500,0.08739208,41525.0,41521.0,0.02]
[1644058202696,0.08739208,41525.0,41521.0,0.02074727]
[1644058202896,0.33161,41524.0,41521.0,0.02074727]
[1644058203798,0.4,41523.0,41515.0,0.04999999]
[1644058204058,0.38161,41523.0,41520.0,0.00074728]
[1644058204247,0.33161,41521.0,41520.0,0.00074728]
[1644058204848,0.05,41523.0,41517.0,0.00020119]
[1644058205052,0.05,41523.0,41518.0,0.00072539]
[1644058205248,0.18064462,41523.0,41518.0,0.00072539]
[1644058205449,0.33161,41522.0,41518.0,0.00072539]
[1644058206047,0.33161,41522.0,41517.0,0.00020119]
[1644058206248,0.17043,41523.0,41516.0,0.00705528]
[1644058206451,0.07913401,41518.0,41516.0,0.00705528]
[1644058206748,0.07913401,41518.0,41516.0,0.00685409]
[1644058207553,0.07833401,41518.0,41516.0,0.00685409]
[1644058208403,0.07833401,41518.0,41517.0,0.108047]
[1644058208605,0.07833401,41518.0,41517.0,0.39197647]
[1644058209002,0.07833401,41518.0,41517.0,0.10824819]
[1644058209205,0.07833401,41518.0,41517.0,0.00020119]
[1644058209403,0.07833401,41518.0,41516.0,0.00705528]
[1644058210208,0.07833401,41518.0,41516.0,0.00020119]
[1644058210404,0.07833401,41518.0,41515.0,0.00098784]
[1644058210806,0.3,41524.0,41516.0,0.25]
[1644058211008,0.07597512,41518.0,41514.0,0.00020119]
[1644058211208,0.07597512,41518.0,41514.0,0.00078665]
[1644058211553,0.07597512,41518.0,41514.0,0.00098784]
[1644058211947,0.07597512,41518.0,41514.0,0.25988764]
[1644058212149,0.07597512,41518.0,41516.0,0.04999999]
[1644058212347,0.07597512,41518.0,41514.0,0.25968646]
[1644058212548,0.07597512,41518.0,41515.0,0.10825719]
[1644058212754,0.07597512,41518.0,41515.0,0.108056]
[1644058212947,0.07597512,41518.0,41516.0,0.04999999]
[1644058213155,0.07597512,41518.0,41516.0,0.05020118]
[1644058213348,0.07597512,41518.0,41516.0,0.04999999]
[1644058213750,0.07597512,41518.0,41517.0,0.108051]
[1644058213950,0.07597512,41518.0,41517.0,0.10825219]
[1644058215703,0.07597512,41518.0,41517.0,0.00020119]
[1644058215902,0.07597512,41518.0,41516.0,0.00020119]
[1644058216105,0.07597512,41518.0,41515.0,0.00048291]
[1644058216701,0.07597512,41518.0,41517.0,0.04999999]
[1644058217201,0.07597512,41518.0,41515.0,0.00048291]
[1644058217603,0.07597512,41518.0,41517.0,0.04999999]
[1644058217905,0.07597512,41518.0,41516.0,0.00020119]
[1644058218103,0.28336711,41517.0,41514.0,0.00020119]
[1644058218302,0.40381411,41517.0,41515.0,0.00020119]
[1644058218504,0.30108015,41516.0,41515.0,0.00078669]
[1644058219155,0.52797014,41516.0,41515.0,0.00078669]
[1644058219354,0.85958014,41516.0,41515.0,0.00078669]
[1644058219557,0.85958014,41516.0,41512.0,0.00020119]
[1644058219558,0.52797014,41516.0,41512.0,0.00020119]
[1644058219755,0.52797014,41516.0,41511.0,0.02020119]
[1644058219954,0.52797014,41516.0,41512.0,0.00020119]
[1644058220155,0.52797014,41516.0,41511.0,0.02]
[1644058220156,0.52797014,41516.0,41511.0,0.02020119]
[1644058220956,0.52797014,41516.0,41511.0,0.02094197]
[1644058221956,0.52797014,41516.0,41511.0,0.02020119]
[1644058222157,0.52797014,41516.0,41511.0,0.02094197]
[1644058223098,0.52797014,41516.0,41511.0,0.02]
[1644058223300,0.52797014,41516.0,41511.0,0.02069886]
[1644058224397,0.30108015,41516.0,41511.0,0.02]
[1644058224599,0.07597512,41518.0,41511.0,0.02073831]
[1644058224600,0.27600864,41517.0,41511.0,0.02073831]
[1644058225297,0.27210248,41517.0,41513.0,0.24683609]
[1644058225698,0.27210248,41517.0,41512.0,0.05093948]
[1644058225903,0.27210248,41517.0,41512.0,0.05073829]
[1644058226099,0.27210248,41517.0,41512.0,0.05093948]
[1644058226301,0.32210248,41517.0,41512.0,0.00093949]
[1644058226747,0.32210248,41517.0,41512.0,0.00020119]
[1644058226945,0.32210248,41517.0,41512.0,0.0007383]
[1644058227144,0.32210248,41517.0,41512.0,0.00093949]
[1644058227947,0.32210248,41517.0,41512.0,0.00020119]
[1644058228148,0.32210248,41517.0,41512.0,0.00073846]
[1644058228349,0.32210248,41517.0,41512.0,0.00093965]
[1644058229149,0.32210248,41517.0,41512.0,0.00020119]
[1644058229350,0.32210248,41517.0,41515.0,0.19520737]
[1644058229553,0.07597512,41518.0,41515.0,0.24520736]
[1644058229956,0.07597512,41518.0,41515.0,0.24540855]
[1644058233504,0.00423492,41518.0,41515.0,0.24540855]
[1644058233901,0.06775773,41521.0,41520.0,0.26777235]
[1644058234548,0.06775773,41521.0,41519.0,0.00020119]
[1644058234747,0.06775773,41521.0,41518.0,0.05020118]
[1644058234945,0.06775773,41521.0,41518.0,0.04999999]
[1644058235344,0.06775773,41521.0,41517.0,0.00098556]
[1644058235546,0.06775773,41521.0,41518.0,0.4404667]
[1644058236047,0.06775773,41521.0,41518.0,0.44066789]
[1644058236647,0.06775773,41521.0,41518.0,0.4404667]
[1644058236849,0.06775773,41521.0,41518.0,0.44066789]
[1644058237899,0.06775773,41521.0,41518.0,0.4404667]
[1644058238099,0.06775773,41521.0,41518.0,0.44066789]
[1644058238700,0.06775773,41521.0,41518.0,0.23482545]
[1644058238904,0.06775773,41521.0,41518.0,0.00020119]
[1644058239100,0.06775773,41521.0,41517.0,0.00097649]
[1644058239301,0.06775773,41521.0,41517.0,0.0007753]
[1644058239302,0.21295925,41520.0,41517.0,0.0007753]
[1644058239500,0.26295925,41520.0,41517.0,0.0007753]
[1644058239700,0.7,41517.0,41508.0,0.31254826]
[1644058239904,0.7,41517.0,41506.0,2.46770807]
[1644058239905,0.60848394,41510.0,41506.0,2.46770807]
[1644058240105,0.60848394,41510.0,41506.0,2.15774148]
[1644058240106,0.0481,41509.0,41506.0,2.15774148]
[1644058241199,0.108342,41509.0,41506.0,2.15774148]
[1644058241400,0.12048081,41509.0,41506.0,2.15774148]
[1644058242254,0.28717986,41508.0,41506.0,2.15774148]
[1644058242456,0.28717986,41508.0,41506.0,1.9084968]
[1644058242657,0.43527986,41508.0,41506.0,1.9084968]
[1644058242855,0.30729331,41507.0,41506.0,1.9084968]
[1644058244160,0.35729331,41507.0,41506.0,0.89899322]
[1644058244357,0.83700331,41507.0,41506.0,0.89899322]
[1644058244557,0.83700331,41507.0,41506.0,0.49319428]
[1644058244760,0.75,41505.0,41501.0,0.02]
[1644058244958,0.33161,41503.0,41501.0,0.02]
[1644058245158,0.64415034,41502.0,41501.0,0.02]
[1644058245400,0.84415034,41502.0,41501.0,0.02]
[1644058246003,0.69415034,41502.0,41501.0,0.02]
[1644058247402,0.38161,41502.0,41501.0,0.02]
[1644058247603,0.05,41502.0,41501.0,0.02]
[1644058248004,0.38161,41502.0,41501.0,0.02]
[1644058250251,0.65398747,41502.0,41501.0,0.02]
[1644058250447,0.75398747,41502.0,41501.0,0.02]
[1644058252053,0.65398747,41502.0,41501.0,0.02]
[1644058252448,0.32237747,41502.0,41501.0,0.02]
[1644058253302,0.65398747,41502.0,41501.0,0.02]
[1644058253698,0.60398747,41502.0,41501.0,0.02]
[1644058253898,0.65398747,41502.0,41501.0,0.02]
[1644058258653,0.38161,41502.0,41501.0,0.02]
[1644058259252,0.05,41502.0,41501.0,0.02]
[1644058259653,0.1,41506.0,41501.0,0.02]
[1644058259859,0.33161,41504.0,41501.0,0.02]
[1644058260054,0.05,41506.0,41501.0,0.02019973]
[1644058260599,0.22048124,41507.0,41501.0,0.07019972]
[1644058260600,0.27048124,41507.0,41501.0,0.07019972]
[1644058260797,0.17048124,41507.0,41501.0,0.0709368]
[1644058261397,0.110241,41507.0,41501.0,0.0709368]
[1644058261601,0.00073696,41508.0,41501.0,0.0709368]
[1644058261602,0.00073696,41508.0,41504.0,0.04999999]
[1644058261802,0.02097935,41514.0,41502.0,0.00019973]
[1644058262000,0.02097935,41514.0,41507.0,0.04999999]
[1644058262200,0.02097935,41514.0,41513.0,0.04999999]
[1644058262406,0.33161,41521.0,41517.0,0.27183076]
[1644058262603,0.83161,41521.0,41517.0,0.27183076]
[1644058262801,0.75686583,41522.0,41517.0,0.27183076]
[1644058262802,0.25686583,41522.0,41517.0,0.27183076]
[1644058263002,0.33161,41521.0,41517.0,0.32183075]
[1644058263803,0.33234684,41521.0,41517.0,0.32183075]
[1644058264059,0.3,41520.0,41513.0,0.07057523]
[1644058264453,0.04999999,41517.0,41513.0,0.07057523]
[1644058264652,0.19794128,41521.0,41516.0,0.23708237]
[1644058264854,0.04999999,41517.0,41512.0,0.25468728]
[1644058265252,0.04999999,41517.0,41513.0,0.27535211]
[1644058265452,0.04999999,41517.0,41513.0,0.27138186]
[1644058265653,0.12043779,41525.0,41513.0,0.27164527]
[1644058265854,0.05073877,41517.0,41512.0,0.25468728]
[1644058266153,0.05073877,41517.0,41516.0,0.21922564]
[1644058266553,0.04999999,41517.0,41516.0,0.21922564]
[1644058266754,0.04999999,41517.0,41512.0,0.25468728]
[1644058266956,0.04999999,41516.0,41512.0,0.25468728]
[1644058267997,0.05073864,41516.0,41514.0,0.21624593]
[1644058269002,0.04999999,41516.0,41514.0,0.21624593]
[1644058269202,0.04999999,41516.0,41511.0,0.0481]
[1644058269803,0.00073863,41517.0,41511.0,0.0481]
[1644058270308,0.05,41521.0,41511.0,0.0481]
[1644058270309,0.04999999,41516.0,41511.0,0.0481]
[1644058270505,0.05073864,41516.0,41511.0,0.0481]
[1644058270704,0.05073864,41516.0,41515.0,0.19705739]